Cogmind - Beta 11.2 @@@ ROGUE MODE // 2022.12.26 @ 15:32:39 // Winter2022/Polymind Player: Rainynight Result: Self-destructed Performance ------------- Evolutions (6) 3000 Regions Visited (21) 4200 Robots Destroyed (28) 140 Value Destroyed (1125) 1125 Prototype IDs (46) 920 Alien Tech Used (0) 0 Bonus (11381) 11381 TOTAL SCORE: 20226 Bonus ------- Polymind Skill 10055 High Alert Combat Kills 57 Entered DSFs 500 Aligned with FarCom 300 Met Data Miner 300 Met Zhirov 300 Friendly Fire -131 Cogmind --------- Core Integrity 464/1150 Matter 134/150 Energy 275/275 System Corruption 0% Temperature Cool (0) Movement Treading (160) Location -4/Warlord Parts ------- > --- POWER (1) -------- Antimatter Reactor > --- PROPULSION (2) --- Improved Medium Treads Spiked Medium Treads > --- UTILITY (5) ------ Improved Cooling System Energy Filter Improved Weapon Cycler Point Defense Array > --- WEAPON (2) ------- Heavy Beamcaster Bore Cannon > --- INVENTORY (1) ---- (None) Peak State ------------ > --- POWER ------------ Heavy Deuterium Engine > --- PROPULSION ------- Combat Antigrav System > --- UTILITY ---------- Advanced Launcher Guidance Computer Improved Target Analyzer Experimental Core Analyzer Improved Armor Integrity Analyzer EX Chip 1 EX Chip 1 EX Chip 1 EX Chip 1 EX Chip 1 EX Chip 1 EX Chip 1 EX Chip 1 EX Chip 1 EX Chip 1 EX Chip 2 EX Chip 2 EX Chip 2 EX Chip 2 EX Chip 2 EX Chip 2 EX Chip 2 EX Chip 2 > --- WEAPON ----------- AWS/EX-DEC > --- INVENTORY -------- Deploy-a-Sentry [Rating: 99] Favorites ----------- Power Heavy Deuterium Engine Engine Heavy Deuterium Engine Power Core Light Nuclear Core Reactor Cold Fusion Reactor Propulsion VTOL Module Treads Armored Treads Wheel Wheel Hover Unit Combat Antigrav System Flight Unit VTOL Module Utility EX Chip 1 Device Improved Heat Sink Processor Improved Target Analyzer Hackware EX Chip 1 Weapon AWS/EX-DEC Energy Gun AWS/EX-DEC Ballistic Gun Autogun Ballistic Cannon Battle Cannon Special Weapon Mining Laser Build | -11 -10 -10 -10 -9 -8 -7 -7 -6 -6 -6 -6 -5 -5 -5 -5 -5 -4 -4 -4 -4 -4 ------- Run | Scr Mat Min Exi Min Mat Fac DSF Fac Low Low Dat Pro Fac Upp Upp Zhi Pro Fac Upp Upp War Slots Evolved . | . . . . . . . . . . . . . . . . . . . . . . Power . | . . . . . . . . . . . . . . . . . . . . . . Propulsion . | . . . . . . . . . . . . . . . . . . . . . . Utility . | . . . . . . . . . . . . . . . . . . . . . . Weapon . | . . . . . . . . . . . . . . . . . . . . . . Parts Attached . | . . . . . . . . . . . . . . . . . . . . . . Power . | . . . . . . . . . . . . . . . . . . . . . . Engine . | . . . . . . . . . . . . . . . . . . . . . . Core . | . . . . . . . . . . . . . . . . . . . . . . Reactor . | . . . . . . . . . . . . . . . . . . . . . . Propulsion . | . . . . . . . . . . . . . . . . . . . . . . Treads . | . . . . . . . . . . . . . . . . . . . . . . Leg . | . . . . . . . . . . . . . . . . . . . . . . Wheel . | . . . . . . . . . . . . . . . . . . . . . . Hover . | . . . . . . . . . . . . . . . . . . . . . . Flight . | . . . . . . . . . . . . . . . . . . . . . . Utility . | . . . . . . . . . . . . . . . . . . . . . . Device . | . . . . . . . . . . . . . . . . . . . . . . Storage . | . . . . . . . . . . . . . . . . . . . . . . Processor . | . . . . . . . . . . . . . . . . . . . . . . Hackware . | . . . . . . . . . . . . . . . . . . . . . . Protection . | . . . . . . . . . . . . . . . . . . . . . . Artifact . | . . . . . . . . . . . . . . . . . . . . . . Weapon . | . . . . . . . . . . . . . . . . . . . . . . Energy Gun . | . . . . . . . . . . . . . . . . . . . . . . Energy Cannon . | . . . . . . . . . . . . . . . . . . . . . . Ballistic Gun . | . . . . . . . . . . . . . . . . . . . . . . Ballistic Cannon . | . . . . . . . . . . . . . . . . . . . . . . Launcher . | . . . . . . . . . . . . . . . . . . . . . . Special Weapon . | . . . . . . . . . . . . . . . . . . . . . . Impact Weapon . | . . . . . . . . . . . . . . . . . . . . . . Slashing Weapon . | . . . . . . . . . . . . . . . . . . . . . . Piercing Weapon . | . . . . . . . . . . . . . . . . . . . . . . Special Melee Weapon . | . . . . . . . . . . . . . . . . . . . . . . Unidentified Prototypes . | . . . . . . . . . . . . . . . . . . . . . . Parts Lost 23 | . . . . . 1 . 2 2 . . . . . 7 . . . . 1 . 10 Power 5 | . . . . . . . 1 . . . . . . 1 . . . . 1 . 2 Propulsion 5 | . . . . . . . . . . . . . . 2 . . . . . . 3 Utility 7 | . . . . . 1 . . 2 . . . . . 1 . . . . . . 3 Weapon 6 | . . . . . . . 1 . . . . . . 3 . . . . . . 2 Highest Loss Streak 7 | . . . . . 1 . 2 2 . . . . . 7 . . . . 1 . 6 To Critical Strikes . | . . . . . . . . . . . . . . . . . . . . . . Average Slot Usage (%) 87 | . 85 100 99 96 93 92 87 86 83 75 75 75 75 85 22 100 100 100 92 100 78 Engine 2 | . 13 16 3 3 3 3 1 . . . . . . . . . . . . . 2 Core 8 | . . . . . . . . 5 25 25 25 25 25 15 . 25 25 25 17 25 16 Wheel 2 | . 28 33 6 . . . . . . . . . . . . . . . . . . Hover 2 | . . . 5 3 3 3 3 2 . . . . . 8 . . . . . . 2 Flight 17 | . . . . . . . . 10 50 50 50 50 50 20 . 50 50 50 50 50 25 Device 4 | . 28 33 10 . . . . . . . . . . 12 11 . . . . . 8 Processor 6 | . . . 3 15 15 15 15 11 . . . . . 6 11 . . . . . 2 Hackware 32 | . . . 61 69 66 65 65 49 . . . . . . . . . . . . . Energy Gun 1 | . . . . 3 3 3 1 . . . . . . 6 . . . . . . . Ballistic Gun 5 | . . . . . . . . 5 8 . . . . 10 . 25 25 25 25 25 14 Special Weapon 1 | . 13 16 3 . . . . . . . . . . 4 . . . . . . 1 Naked Turns 68 | . 24 . 5 . . . . . . . . . . 1 1 . . . . . 37 Heaviest Build 40 | . 6 6 21 21 21 21 21 8 8 5 5 5 8 21 8 8 8 8 8 8 40 Greatest Support 58 | 3 20 20 24 16 16 16 16 16 8 8 8 8 8 22 8 8 8 8 8 8 58 Greatest Overweight (x) 2 | . . . 1 1 1 1 1 . . . . . . 2 . . . . . . 2 Average Overweight (x) . | . . . . 1 1 1 . . . . . . . . . . . . . . . Largest Inventory Capacity 5 | . . . 1 1 1 1 1 1 . . . . . 5 5 . . . . . 1 Average Capacity . | . . . . 1 1 1 1 . . . . . . 3 4 . . . . . . Most Carried 1 | . . . 1 1 1 1 1 1 . . . . . . . . . . . . . Average Carried . | . . . . 1 1 1 1 . . . . . . . . . . . . . . Final Capacity 5 | . . . 1 1 1 1 1 . . . . . . 5 . . . . . . 1 Final Carried 1 | . . . 1 1 1 1 1 . . . . . . . . . . . . . . Class Distribution -------------------- 46% | Tinkerer 34% | Swarmer 7% | Programmer 7% | Tunneler Dominant Class ---------------- Tunneler | -10/Materials Tunneler | -10/Mines Tinkerer | -10/Exiles Tinkerer | -9/Mines Tinkerer | -8/Materials Tinkerer | -7/Factory Tinkerer | -7/DSF Tinkerer | -6/Factory Swarmer | -6/Lower Caves Swarmer | -6/Lower Caves Swarmer | -6/Data Miner Swarmer | -5/Proximity Caves Swarmer | -5/Factory Programmer | -5/Upper Caves Programmer | -5/Upper Caves Swarmer | -5/Zhirov Swarmer | -4/Proximity Caves Swarmer | -4/Factory Swarmer | -4/Upper Caves Swarmer | -4/Upper Caves Swarmer | -4/Warlord Resources | -11 -10 -10 -10 -9 -8 -7 -7 -6 -6 -6 -6 -5 -5 -5 -5 -5 -4 -4 -4 -4 -4 ----------- Run | Scr Mat Min Exi Min Mat Fac DSF Fac Low Low Dat Pro Fac Upp Upp Zhi Pro Fac Upp Upp War Matter Collected 208 | . . . . . . . . . 80 . . . . . . . 16 . . 108 4 Remotely . | . . . . . . . . . . . . . . . . . . . . . . Salvage Created 1355 | . . . . 187 920 . . . 78 . . . 17 39 . . . . . 114 . Parts 68 | . . . . 13 36 . 4 . . . . . 1 2 . . . . . 5 7 Haulers Intercepted . | . . . . . . . . . . . . . . . . . . . . . . Recyclers Shooed . | . . . . . . . . . . . . . . . . . . . . . . Parts Field Recycled . | . . . . . . . . . . . . . . . . . . . . . . Retrieved Matter . | . . . . . . . . . . . . . . . . . . . . . . Parts Self-Destructed 1 | . . . . . . . . . . . . . . 1 . . . . . . . Prevented 2 | . . . . . . . . . . . . . . 1 1 . . . . . . Kills | -11 -10 -10 -10 -9 -8 -7 -7 -6 -6 -6 -6 -5 -5 -5 -5 -5 -4 -4 -4 -4 -4 ------- Run | Scr Mat Min Exi Min Mat Fac DSF Fac Low Low Dat Pro Fac Upp Upp Zhi Pro Fac Upp Upp War Combat Hostiles Destroyed 22 | . . . . 4 15 . 1 . . . . . . 1 . . . . . . 1 Melee 1 | . . . . . . . . . . . . . . . . . . . . . 1 Guns 19 | . . . . 4 13 . 1 . . . . . . 1 . . . . . . . Classes Destroyed 10 | . . . . 3 4 . 1 . . . . . . 1 . . . . . 1 . Worker 1 | . . . . 1 . . . . . . . . . . . . . . . . . Tunneler 1 | . . . . 1 . . . . . . . . . . . . . . . . . Watcher 3 | . . . . . 2 . . . . . . . 1 . . . . . . . . Swarmer 1 | . . . . . . . . . . . . . . 1 . . . . . . . Grunt 14 | . . . . 4 10 . . . . . . . . . . . . . . . . Duelist 1 | . . . . . 1 . . . . . . . . . . . . . . . . Sentry 4 | . . . . . 3 . . . . . . . . . . . . . . . 1 Specialist 1 | . . . . . . . 1 . . . . . . . . . . . . . . Hunter 1 | . . . . . 1 . . . . . . . . . . . . . . . . Decomposer 2 | . . . . . . . . . . . . . . . . . . . . 2 . Samaritan 2 | . . . . . . . . . . . . . . . . . . . . 2 . Thug 1 | . . . . . . . . . . . . . . . . . . . . . 1 Best Kill Streak 9 | . . . . 4 9 . 1 . . . . . 1 1 . . . . . . 1 Combat Bots Only 8 | . . . . 2 8 . 1 . . . . . . 1 . . . . . . 1 Max Kills in Single Turn 1 | . . . . 1 1 . 1 . . . . . 1 1 . . . . . 1 1 Gunslinging . | . . . . . . . . . . . . . . . . . . . . . . Exploded . | . . . . . . . . . . . . . . . . . . . . . . Melee 1 | . . . . . . . . . . . . . . . . . . . . . 1 Uniques/NPCs Destroyed . | . . . . . . . . . . . . . . . . . . . . . . Combat | -11 -10 -10 -10 -9 -8 -7 -7 -6 -6 -6 -6 -5 -5 -5 -5 -5 -4 -4 -4 -4 -4 -------- Run | Scr Mat Min Exi Min Mat Fac DSF Fac Low Low Dat Pro Fac Upp Upp Zhi Pro Fac Upp Upp War Damage Taken 4067 | . . . . 48 241 . 314 194 47 23 . . 18 971 162 . . 123 90 . 1836 Core 1699 | . . . . . 51 . 123 115 21 . . . . 573 130 . . 70 17 . 599 Absorbed by Shields . | . . . . . . . . . . . . . . . . . . . . . . Core Remaining (%) 80 | 100 . . . 100 90 . 82 . . . . 84 . . . . 29 . . . . Volleys Fired 63 | . . . . . . . . . 18 . . . . 1 . . . . . 28 16 Largest 2 | . . . . . . . . . 1 . . . . 2 . . . . . 1 2 Hottest 139 | . . . . . . . . . 23 . . . . 125 . . . . . 23 139 Shots Fired 132 | . . . . 9 50 . 2 . 18 . . . . 2 . . . . . 28 23 Gun 118 | . . . . 9 50 . 2 . 18 . . . . 2 . . . . . 28 9 Cannon 7 | . . . . . . . . . . . . . . . . . . . . . 7 Launcher . | . . . . . . . . . . . . . . . . . . . . . . Special 7 | . . . . . . . . . . . . . . . . . . . . . 7 Kinetic 62 | . . . . . . . . . 18 . . . . . . . . . . 28 16 Thermal 7 | . . . . . . . . . . . . . . . . . . . . . 7 Explosive . | . . . . . . . . . . . . . . . . . . . . . . Electromagnetic 63 | . . . . 9 50 . 2 . . . . . . 2 . . . . . . . Robot Hit Streak 15 | . . . . 3 15 . 6 . 12 . . . . 1 . . . . . 5 10 Robot Miss Streak 3 | . . . . 2 3 . . . 3 . . . . 2 . . . . . 2 2 Penetration Max . | . . . . . . . . . . . . . . . . . . . . . . Secondary Targets . | . . . . . . . . . . . . . . . . . . . . . . Autonomous 61 | . . . . 9 50 . 2 . . . . . . . . . . . . . . Shots Hit Robots 105 | . . . . 8 45 . 2 . 12 . . . . 1 . . . . . 19 18 Core Hits 62 | . . . . 7 30 . 2 . 4 . . . 1 1 . . . . . 8 9 Critical Kills . | . . . . . . . . . . . . . . . . . . . . . . Critical Parts Destroyed 1 | . . . . . . . . . . . . . . . . . . . . 1 . Critical Strikes 13 | . . . . 2 10 . . . . . . . . . . . . . . 1 . Destroy 1 | . . . . . . . . . . . . . . . . . . . . 1 . Corrupt 12 | . . . . 2 10 . . . . . . . . . . . . . . . . Melee Attacks . | . . . . . . . . . . . . . . . . . . . . . . Impact . | . . . . . . . . . . . . . . . . . . . . . . Slashing . | . . . . . . . . . . . . . . . . . . . . . . Piercing . | . . . . . . . . . . . . . . . . . . . . . . Sneak Attacks . | . . . . . . . . . . . . . . . . . . . . . . Combat Hostiles . | . . . . . . . . . . . . . . . . . . . . . . Follow-up Attacks . | . . . . . . . . . . . . . . . . . . . . . . Damage Inflicted 2370 | . . . . 217 1093 . 67 1 193 . . . 187 23 . . . . . 294 295 Guns 2014 | . . . . 217 1093 . 67 . 193 . . . . 23 . . . . . 294 127 Cannons 119 | . . . . . . . . . . . . . . . . . . . . . 119 Explosions 187 | . . . . . . . . . . . . . 187 . . . . . . . . Melee . | . . . . . . . . . . . . . . . . . . . . . . Ramming 4 | . . . . . . . . 1 . . . . . . . . . . . . 3 Kinetic 733 | . . . . . . . . . 193 . . . . . . . . . . 294 246 Thermal 46 | . . . . . . . . . . . . . . . . . . . . . 46 Explosive 187 | . . . . . . . . . . . . . 187 . . . . . . . . Electromagnetic 1400 | . . . . 217 1093 . 67 . . . . . . 23 . . . . . . . Impact . | . . . . . . . . . . . . . . . . . . . . . . Slashing . | . . . . . . . . . . . . . . . . . . . . . . Piercing . | . . . . . . . . . . . . . . . . . . . . . . Highest Corruption . | . . . . . . . . . . . . . . . . . . . . . . Average Corruption . | . . . . . . . . . . . . . . . . . . . . . . Corruption Purged . | . . . . . . . . . . . . . . . . . . . . . . Corruption Blocked . | . . . . . . . . . . . . . . . . . . . . . . Overload Shots . | . . . . . . . . . . . . . . . . . . . . . . Overflow Damage . | . . . . . . . . . . . . . . . . . . . . . . Projectiles . | . . . . . . . . . . . . . . . . . . . . . . Explosions . | . . . . . . . . . . . . . . . . . . . . . . Melee . | . . . . . . . . . . . . . . . . . . . . . . Knockbacks 2 | . . . . . . . . . . . . . . . . . . . . . 2 Impact . | . . . . . . . . . . . . . . . . . . . . . . Kinetic 2 | . . . . . . . . . . . . . . . . . . . . . 2 Secondary . | . . . . . . . . . . . . . . . . . . . . . . Self-Inflicted Damage . | . . . . . . . . . . . . . . . . . . . . . . Shots . | . . . . . . . . . . . . . . . . . . . . . . Rammed 4 | . . . . . . . . 1 . . . . . . . . . . . . 3 Targets Rammed 5 | . . . . . . . . 1 . . . . . . . . . . . . 4 Kicked . | . . . . . . . . . . . . . . . . . . . . . . Crushed 1 | . . . . . . . . . . . . . . . . . . . . . 1 Highest Temperature 99 | . . . . 7 . . . 9 20 . . . . 3 . . . . 1 20 99 Average Temperature 14 | . . . . 3 . . . 5 11 . . . . 2 . . . . 1 10 27 Received Heat Transfer 920 | . . . . 27 90 . 9 54 . . . . . 120 . . . . 21 . 599 Siege Activations . | . . . . . . . . . . . . . . . . . . . . . . Robots Corrupted 2 | . . . . . 2 . . . . . . . . . . . . . . . . Combat Hostiles 2 | . . . . . 2 . . . . . . . . . . . . . . . . Parts Fried 10 | . . . . . 10 . . . . . . . . . . . . . . . . Impact Corruptions . | . . . . . . . . . . . . . . . . . . . . . . Robots Melted . | . . . . . . . . . . . . . . . . . . . . . . Combat Hostiles . | . . . . . . . . . . . . . . . . . . . . . . Parts Melted . | . . . . . . . . . . . . . . . . . . . . . . Heat Transferred 320 | . . . . . . . . . . . . . . . . . . . . . 320 Parts Sabotaged . | . . . . . . . . . . . . . . . . . . . . . . Parts Stolen 1 | . . . . . . . . . 1 . . . . . . . . . . . . Parts Stripped . | . . . . . . . . . . . . . . . . . . . . . . Power Chain Reactions . | . . . . . . . . . . . . . . . . . . . . . . Missiles Intercepted . | . . . . . . . . . . . . . . . . . . . . . . Alert | -11 -10 -10 -10 -9 -8 -7 -7 -6 -6 -6 -6 -5 -5 -5 -5 -5 -4 -4 -4 -4 -4 ------- Run | Scr Mat Min Exi Min Mat Fac DSF Fac Low Low Dat Pro Fac Upp Upp Zhi Pro Fac Upp Upp War Peak Influence 567 | . 5 1 . 60 567 257 209 134 . . . . 151 . . . . 135 . . . Initial 257 | . . 1 . . 15 257 179 109 . . . . . . . . . . . . . Average 86 | . 3 1 . 23 207 257 201 118 . . . . 75 . . . . 47 . . . Maximum Alert Level 2 | . . . . . 2 1 1 . . . . . . . . . . . . . . Low Security (%) 84 | 100 100 100 . 100 48 . 61 100 . . . . 100 . . . . 100 . . . Level 1 13 | . . . . . 42 100 38 . . . . . . . . . . . . . . Level 2 1 | . . . . . 8 . . . . . . . . . . . . . . . . Level 3 . | . . . . . . . . . . . . . . . . . . . . . . Level 4 . | . . . . . . . . . . . . . . . . . . . . . . Level 5 . | . . . . . . . . . . . . . . . . . . . . . . High Security . | . . . . . . . . . . . . . . . . . . . . . . Max Security . | . . . . . . . . . . . . . . . . . . . . . . Squads Dispatched 10 | . . . . . 5 . 1 1 . . . . 3 . . . . . . . . Investigation 7 | . . . . . 5 . . . . . . . 2 . . . . . . . . Extermination . | . . . . . . . . . . . . . . . . . . . . . . Reinforcement 3 | . . . . . . . 1 1 . . . . 1 . . . . . . . . Assault . | . . . . . . . . . . . . . . . . . . . . . . Garrison . | . . . . . . . . . . . . . . . . . . . . . . Intercept . | . . . . . . . . . . . . . . . . . . . . . . Searches Triggered . | . . . . . . . . . . . . . . . . . . . . . . Construction Impeded . | . . . . . . . . . . . . . . . . . . . . . . Haulers Reinforced 1 | . . . . . . . . . . . . . 1 . . . . . . . . Active Scanning Responses . | . . . . . . . . . . . . . . . . . . . . . . Cargo Convoy Interrupts . | . . . . . . . . . . . . . . . . . . . . . . Stealth | -11 -10 -10 -10 -9 -8 -7 -7 -6 -6 -6 -6 -5 -5 -5 -5 -5 -4 -4 -4 -4 -4 --------- Run | Scr Mat Min Exi Min Mat Fac DSF Fac Low Low Dat Pro Fac Upp Upp Zhi Pro Fac Upp Upp War Distress Signals 3 | . . . . 1 1 . . . . . . . . . . . . 1 . . . Communications Jammed . | . . . . . . . . . . . . . . . . . . . . . . Distress Signals . | . . . . . . . . . . . . . . . . . . . . . . Times Spotted 141 | . . . . 4 23 . 6 2 2 1 . . 14 3 12 . . 18 20 . 36 Peak Tracking Total 18 | . . . . 2 6 . 3 2 1 1 . . 9 2 6 . . 18 12 . 12 Tactical Retreats 10 | . . . . . 3 . 2 . . . . . . . 1 . . 1 2 . 1 Traps | -11 -10 -10 -10 -9 -8 -7 -7 -6 -6 -6 -6 -5 -5 -5 -5 -5 -4 -4 -4 -4 -4 ------- Run | Scr Mat Min Exi Min Mat Fac DSF Fac Low Low Dat Pro Fac Upp Upp Zhi Pro Fac Upp Upp War Traps Triggered 1 | . . . . . . . 1 . . . . . . . . . . . . . . Indirectly . | . . . . . . . . . . . . . . . . . . . . . . Trap Hack Attempts . | . . . . . . . . . . . . . . . . . . . . . . Triggered . | . . . . . . . . . . . . . . . . . . . . . . Disarmed . | . . . . . . . . . . . . . . . . . . . . . . Reprogrammed 5 | . . . . . 5 . . . . . . . . . . . . . . . . Reused 1 | . . . . . 1 . . . . . . . . . . . . . . . . Traps Extracted . | . . . . . . . . . . . . . . . . . . . . . . Installed . | . . . . . . . . . . . . . . . . . . . . . . Triggered 7 | . . . . . 3 . . 1 . . . . . . 3 . . . . . . Machines | -11 -10 -10 -10 -9 -8 -7 -7 -6 -6 -6 -6 -5 -5 -5 -5 -5 -4 -4 -4 -4 -4 ---------- Run | Scr Mat Min Exi Min Mat Fac DSF Fac Low Low Dat Pro Fac Upp Upp Zhi Pro Fac Upp Upp War Machines Disabled 3 | . . . . . 2 . . . . . . . 1 . . . . . . . . Max in Single Turn 1 | . . . . . 1 . . . . . . . 1 . . . . . . . . Machines Sabotaged . | . . . . . . . . . . . . . . . . . . . . . . Garrisons Compromised . | . . . . . . . . . . . . . . . . . . . . . . Overloaded Fab Kills . | . . . . . . . . . . . . . . . . . . . . . . Hacking | -11 -10 -10 -10 -9 -8 -7 -7 -6 -6 -6 -6 -5 -5 -5 -5 -5 -4 -4 -4 -4 -4 --------- Run | Scr Mat Min Exi Min Mat Fac DSF Fac Low Low Dat Pro Fac Upp Upp Zhi Pro Fac Upp Upp War Machines Accessed 34 | . 1 1 2 . 6 1 . . 2 . 4 . 2 1 . 9 . . 1 . 4 Terminals 11 | . 1 . . . 6 1 . . . . . . 2 . . . . . 1 . . Fabricators . | . . . . . . . . . . . . . . . . . . . . . . Repair Stations . | . . . . . . . . . . . . . . . . . . . . . . Recycling Units . | . . . . . . . . . . . . . . . . . . . . . . Scanalyzers . | . . . . . . . . . . . . . . . . . . . . . . Garrison Access . | . . . . . . . . . . . . . . . . . . . . . . Total Hacks 138 | . 2 1 10 . 16 1 . . 3 . 31 . 7 1 . 48 . . 4 . 14 Successful 131 | . 1 1 10 . 15 1 . . 3 . 31 . 2 1 . 48 . . 4 . 14 Failed 7 | . 1 . . . 1 . . . . . . . 5 . . . . . . . . Catastrophic 2 | . . . . . . . . . . . . . 2 . . . . . . . . Database Lockouts . | . . . . . . . . . . . . . . . . . . . . . . Manual 24 | . 2 . . . 15 . . . . . . . 7 . . . . . . . . Terminals 30 | . 2 . . . 16 1 . . . . . . 7 . . . . . 4 . . Fabricators . | . . . . . . . . . . . . . . . . . . . . . . Repair Stations . | . . . . . . . . . . . . . . . . . . . . . . Recycling Units . | . . . . . . . . . . . . . . . . . . . . . . Scanalyzers . | . . . . . . . . . . . . . . . . . . . . . . Garrison Access . | . . . . . . . . . . . . . . . . . . . . . . Terminal Hacks 120 | . 1 1 10 . 5 1 . . 3 . 31 . 1 1 . 48 . . 4 . 14 Record 65 | . . . 10 . . . . . 2 . 11 . . . . 36 . . 4 . 2 Part Schematic 16 | . . . . . . . . . . . 12 . . . . 4 . . . . . Robot Schematic 5 | . . . . . . . . . . . 5 . . . . . . . . . . Robot Analysis 4 | . . . . . . . . . . . . . . . . 4 . . . . . Prototype ID Bank 18 | . . . . . . . . . . . 3 . . . . 4 . . . . 11 Open Door 4 | . . 1 . . . . . . 1 . . . . 1 . . . . . . 1 Open DSF 1 | . . . . . . 1 . . . . . . . . . . . . . . . Level Access Points 1 | . . . . . 1 . . . . . . . . . . . . . . . . Alert Level 1 | . . . . . . . . . . . . . 1 . . . . . . . . Unreport Threat 1 | . . . . . 1 . . . . . . . . . . . . . . . . Reprogram Traps 2 | . . . . . 2 . . . . . . . . . . . . . . . . Dispatch Records 1 | . 1 . . . . . . . . . . . . . . . . . . . . Registered Prototypes 1 | . . . . . 1 . . . . . . . . . . . . . . . . Fabricator Hacks . | . . . . . . . . . . . . . . . . . . . . . . Repair Station Hacks . | . . . . . . . . . . . . . . . . . . . . . . Recycling Unit Hacks . | . . . . . . . . . . . . . . . . . . . . . . Scanalyzer . | . . . . . . . . . . . . . . . . . . . . . . Garrison Access Hacks . | . . . . . . . . . . . . . . . . . . . . . . Unauthorized Hacks 11 | . . . . . 10 . . . . . . . 1 . . . . . . . . Terminals 11 | . . . . . 10 . . . . . . . 1 . . . . . . . . Detonate 6 | . . . . . 5 . . . . . . . 1 . . . . . . . . Sabotage 5 | . . . . . 5 . . . . . . . . . . . . . . . . Fabricators . | . . . . . . . . . . . . . . . . . . . . . . Repair Stations . | . . . . . . . . . . . . . . . . . . . . . . Recycling Units . | . . . . . . . . . . . . . . . . . . . . . . Scanalyzers . | . . . . . . . . . . . . . . . . . . . . . . Garrison Access . | . . . . . . . . . . . . . . . . . . . . . . Data Cores Recovered . | . . . . . . . . . . . . . . . . . . . . . . Used . | . . . . . . . . . . . . . . . . . . . . . . Hacking Detections 6 | . 1 . . . 2 . . . . . . . 2 . . . . . 1 . . Full Trace Events 3 | . . . . . . . . . . . . . 2 . . . . . 1 . . Feedback Events . | . . . . . . . . . . . . . . . . . . . . . . Feedback Blocked . | . . . . . . . . . . . . . . . . . . . . . . Robot Schematics Acquired 5 | . . . . . . . . . . . 5 . . . . . . . . . . Robots Built . | . . . . . . . . . . . . . . . . . . . . . . Authchips . | . . . . . . . . . . . . . . . . . . . . . . Time . | . . . . . . . . . . . . . . . . . . . . . . Total Robot Build Rating . | . . . . . . . . . . . . . . . . . . . . . . Part Schematics Acquired 16 | . . . . . . . . . . . 12 . . . . 4 . . . . . Parts Built . | . . . . . . . . . . . . . . . . . . . . . . Authchips . | . . . . . . . . . . . . . . . . . . . . . . Time . | . . . . . . . . . . . . . . . . . . . . . . Total Part Build Rating . | . . . . . . . . . . . . . . . . . . . . . . Parts Repaired . | . . . . . . . . . . . . . . . . . . . . . . Time . | . . . . . . . . . . . . . . . . . . . . . . Parts Recycled . | . . . . . . . . . . . . . . . . . . . . . . Recycled Matter . | . . . . . . . . . . . . . . . . . . . . . . Retrieved Matter . | . . . . . . . . . . . . . . . . . . . . . . Retrieved Components . | . . . . . . . . . . . . . . . . . . . . . . Parts Scanalyzed . | . . . . . . . . . . . . . . . . . . . . . . Part Schematics Acquired . | . . . . . . . . . . . . . . . . . . . . . . Parts Damaged . | . . . . . . . . . . . . . . . . . . . . . . Bothacking | -11 -10 -10 -10 -9 -8 -7 -7 -6 -6 -6 -6 -5 -5 -5 -5 -5 -4 -4 -4 -4 -4 ------------ Run | Scr Mat Min Exi Min Mat Fac DSF Fac Low Low Dat Pro Fac Upp Upp Zhi Pro Fac Upp Upp War Used RIF Installer . | . . . . . . . . . . . . . . . . . . . . . . Robots Hacked 5 | . . . . . . . . 1 . . . . 1 1 1 . . . 1 . . Non-combat . | . . . . . . . . . . . . . . . . . . . . . . Combat 5 | . . . . . . . . 1 . . . . 1 1 1 . . . 1 . . Robot Hacks Applied 7 | . . . . . . . . 2 . . . . 2 1 1 . . . 1 . . find_shortcuts 5 | . . . . . . . . 1 . . . . 1 1 1 . . . 1 . . find_garrison 2 | . . . . . . . . 1 . . . . 1 . . . . . . . . Relay Couplers Released . | . . . . . . . . . . . . . . . . . . . . . . Fabnet Peak Effective % . | . . . . . . . . . . . . . . . . . . . . . . Robots Rewired . | . . . . . . . . . . . . . . . . . . . . . . Allies Hacked . | . . . . . . . . . . . . . . . . . . . . . . Hacks Repelled . | . . . . . . . . . . . . . . . . . . . . . . Allies | -11 -10 -10 -10 -9 -8 -7 -7 -6 -6 -6 -6 -5 -5 -5 -5 -5 -4 -4 -4 -4 -4 -------- Run | Scr Mat Min Exi Min Mat Fac DSF Fac Low Low Dat Pro Fac Upp Upp Zhi Pro Fac Upp Upp War Total Allies 3 | . . . . 2 . . . . . . . 1 . . . . . . . . . Largest Group 2 | . . . . 2 . . . . . . . 1 . . . . . . . . . Highest-Rated Group 96 | . . . . 45 . . . . . . . 96 . . . . . . . . . Highest-Rated Ally 96 | . . . . 31 . . . . . . . 96 . . . . . . . . . Total Orders . | . . . . . . . . . . . . . . . . . . . . . . Ally Attacks 14 | . . . . 4 . . . . . . . 10 . . . . . . . . . Total Damage 432 | . . . . 65 . . . . . . . 367 . . . . . . . . . Kills . | . . . . . . . . . . . . . . . . . . . . . . Allies Corrupted . | . . . . . . . . . . . . . . . . . . . . . . Allies Melted . | . . . . . . . . . . . . . . . . . . . . . . Intel | -11 -10 -10 -10 -9 -8 -7 -7 -6 -6 -6 -6 -5 -5 -5 -5 -5 -4 -4 -4 -4 -4 ------- Run | Scr Mat Min Exi Min Mat Fac DSF Fac Low Low Dat Pro Fac Upp Upp Zhi Pro Fac Upp Upp War Robot Analysis Total 9 | . 1 . . . . . . 1 . . . . . 1 . 4 . . . . 2 Derelict Logs Recovered 14 | . . 1 . 2 . . . . 2 1 . 2 . 1 3 . 1 . . 1 . Drone Launches . | . . . . . . . . . . . . . . . . . . . . . . Drone Recoveries . | . . . . . . . . . . . . . . . . . . . . . . Exploration | -11 -10 -10 -10 -9 -8 -7 -7 -6 -6 -6 -6 -5 -5 -5 -5 -5 -4 -4 -4 -4 -4 ------------- Run | Scr Mat Min Exi Min Mat Fac DSF Fac Low Low Dat Pro Fac Upp Upp Zhi Pro Fac Upp Upp War Turns Passed 3518 | 9 147 55 408 688 375 23 101 135 140 107 28 119 57 149 181 50 59 83 137 229 238 Spaces Moved 5488 | 19 72 57 509 443 238 16 95 194 328 335 88 371 166 253 358 153 184 258 426 558 367 Core 478 | 19 47 . 4 . . . . . . . . . . 27 356 . . . . . 25 Treads 4 | . . . . . . . . . . . . . . . . . . . . . 4 Legs . | . . . . . . . . . . . . . . . . . . . . . . Wheels 183 | . 25 57 101 . . . . . . . . . . . . . . . . . . Hover 1406 | . . . 404 443 238 16 95 135 . . . . . 46 . . . . . . 29 Flight 3417 | . . . . . . . . 59 328 335 88 371 166 180 2 153 184 258 426 558 309 Fastest Speed 32 | 50 50 80 50 150 150 150 80 32 32 32 32 32 32 32 32 32 32 32 32 32 32 Average Speed 56 | 50 60 80 79 150 150 150 99 65 32 32 32 32 32 42 49 32 32 32 32 32 41 Slowest Speed 170 | 50 80 80 150 150 150 150 150 80 32 32 32 32 32 150 50 32 32 32 32 32 170 Overloaded Moves . | . . . . . . . . . . . . . . . . . . . . . . Propulsion Burnouts . | . . . . . . . . . . . . . . . . . . . . . . Robots Hopped 12 | . . . . . . . . 1 . 2 . . 1 . . . . 6 . . 2 Cave-ins Triggered . | . . . . . . . . . . . . . . . . . . . . . . Exploration Rate (%) 44 | 3 19 17 88 78 22 1 88 8 62 61 73 50 7 50 56 62 31 11 64 69 54 Regions Visited 21 Branch Regions 14 Pre-discovered Areas 10 | . . . 1 1 . . . . 2 . 1 . . 1 1 3 . . . . . Known Exits Taken 5 | . . . . . 1 1 . . . . . . 1 . . . 1 1 . . . Unknown Exits Taken 15 | 1 1 1 1 1 . . . 1 1 1 1 1 . 1 1 1 . . 1 1 . Scrap Searched 16 | . . . . 1 . . . . 3 4 . 1 . . . . 3 . 3 1 . Spaces Dug . | . . . . . . . . . . . . . . . . . . . . . . Terrain Destroyed 26 | . . . . . . . . . . . . . 26 . . . . . . . . Melee . | . . . . . . . . . . . . . . . . . . . . . . Projectile . | . . . . . . . . . . . . . . . . . . . . . . AOE 26 | . . . . . . . . . . . . . 26 . . . . . . . . Terrain Rammed . | . . . . . . . . . . . . . . . . . . . . . . Walls Destroyed . | . . . . . . . . . . . . . . . . . . . . . . Machines Disabled . | . . . . . . . . . . . . . . . . . . . . . . Actions | -11 -10 -10 -10 -9 -8 -7 -7 -6 -6 -6 -6 -5 -5 -5 -5 -5 -4 -4 -4 -4 -4 --------- Run | Scr Mat Min Exi Min Mat Fac DSF Fac Low Low Dat Pro Fac Upp Upp Zhi Pro Fac Upp Upp War Total 5763 | 18 175 66 511 467 256 15 101 200 347 332 87 370 168 275 359 153 183 251 425 585 419 Wait 189 | . 99 . 3 25 19 . 2 7 2 . . . 4 6 2 1 . . . . 19 Move 5446 | 18 71 56 508 442 237 15 94 191 327 330 87 370 163 252 357 152 183 248 425 557 363 Hop 9 | . . . . . . . . 1 . 2 . . 1 . . . . 3 . . 2 Pick Up . | . . . . . . . . . . . . . . . . . . . . . . Fast Attach . | . . . . . . . . . . . . . . . . . . . . . . Attach . | . . . . . . . . . . . . . . . . . . . . . . Detach . | . . . . . . . . . . . . . . . . . . . . . . Swap . | . . . . . . . . . . . . . . . . . . . . . . Drop . | . . . . . . . . . . . . . . . . . . . . . . Fire 63 | . . . . . . . . . 18 . . . . 1 . . . . . 28 16 Melee . | . . . . . . . . . . . . . . . . . . . . . . Ram 1 | . . . . . . . . 1 . . . . . . . . . . . . . Kick . | . . . . . . . . . . . . . . . . . . . . . . Crush 4 | . . . . . . . . . . . . . . . . . . . . . 4 Escape Stasis 5 | . . . . . . . 5 . . . . . . . . . . . . . . Rewire 15 | . . . . . . . . . . . . . . . . . . . . . 15 Trap . | . . . . . . . . . . . . . . . . . . . . . . Miscellaneous 31 | . 5 10 . . . . . . . . . . . 16 . . . . . . . Route ------- -11/Scrapyard -10/Materials -10/Mines (discovered 2 exits: Mat / *Exi) -10/Exiles -9/Mines -8/Materials (discovered 3 exits: *Fac x3) -7/Factory -7/DSF -6/Factory -6/Lower Caves -6/Lower Caves -6/Data Miner -5/Proximity Caves -5/Factory (discovered 2 exits: Fac / *Upp) -5/Upper Caves -5/Upper Caves -5/Zhirov -4/Proximity Caves -4/Factory (discovered 2 exits: *Upp x2) -4/Upper Caves -4/Upper Caves -4/Warlord History --------- Turn | Location | Event 2 | -11/Scrapyard | Discovered new exit (range 16) 10 | -11/Scrapyard | Entered Materials 32 | -10/Materials | Discovered new exit (range 9) 157 | -10/Materials | Entered Mines 161 | -10/Mines | Met a Derelict who couldn't figure out how to use a Trap Extractor 174 | -10/Mines | Identified exit to Materials 182 | -10/Mines | Found a damaged Exp. Sensor Array with a note attached 194 | -10/Mines | Deemed a non-threat by the Exiles lab entrance 194 | -10/Mines | Discovered new exit (range 5) 212 | -10/Mines | Entered Exiles 234 | -10/Exiles | Met 8R-AWN 246 | -10/Exiles | Met EX-HEX 270 | -10/Exiles | Met EX-BIN 298 | -10/Exiles | Took control of EX-BIN (ally) 349 | -10/Exiles | Aligned with FarCom system 406 | -10/Exiles | Met EX-DEC 410 | -10/Exiles | Learned location of Zion (-7) 437 | -10/Exiles | Visited The Gauntlet 521 | -10/Exiles | Took control of EX-DEC (ally) 608 | -10/Exiles | Discovered new exit (range 10) 620 | -10/Exiles | Left Exiles lab with Deploy-a-Sentry 620 | -10/Exiles | Entered Mines 639 | -9/Mines | Learned Materials security intel 1049 | -9/Mines | Excavation squad dispatched 1049 | -9/Mines | A large section of the Mines collapsed 1259 | -9/Mines | A weapon hastily lodged in a ceiling crevice suddenly fell to the ground 1286 | -9/Mines | Discovered new exit (range 15) 1308 | -9/Mines | Entered Materials 1422 | -8/Materials | Identified exit to Factory 1525 | -8/Materials | Destroyed 8 combat bots 1683 | -8/Materials | Entered Factory 1701 | -7/Factory | Identified exit to DSF 1706 | -7/Factory | Entered DSF 1732 | -7/DSF | Additional patrols routed to DSF 1796 | -7/DSF | Discovered new exit (range 15) 1807 | -7/DSF | Entered Factory 1940 | -6/Factory | Discovered new exit (range 8) 1942 | -6/Factory | Entered Lower Caves 1968 | -6/Lower Caves | Encountered a Warlord checkpoint 2022 | -6/Lower Caves | Attracted the attention of an 0b10 checkpoint 2076 | -6/Lower Caves | Discovered new exit (range 14) 2082 | -6/Lower Caves | Entered another Lower Caves area 2096 | -6/Lower Caves | Encountered a Warlord checkpoint 2117 | -6/Lower Caves | Spotted B-75 Beast 2171 | -6/Lower Caves | Learned Factory emergency access door positions 2187 | -6/Lower Caves | Discovered new exit (range 10) 2189 | -6/Lower Caves | Entered Data Miner 2189 | -6/Data Miner | Discovered new exit (range 6) 2196 | -6/Data Miner | Met Data Miner 2204 | -6/Data Miner | Learned location of Section 7 (-2) 2204 | -6/Data Miner | Acquired the access code to Warlord's prototype stash 2209 | -6/Data Miner | Received God Mode back door access code from Data Miner 2217 | -6/Data Miner | Entered Proximity Caves 2233 | -5/Proximity Caves | Learned location of 1 exit from Factory 2248 | -5/Proximity Caves | Learned location of 1 exit from Factory 2280 | -5/Proximity Caves | Spotted B-75 Beast 2282 | -5/Proximity Caves | Escorted by Enhanced Grunt 2334 | -5/Proximity Caves | Discovered new exit (range 6) 2336 | -5/Proximity Caves | Entered Factory 2337 | -5/Factory | Identified exit to Factory 2337 | -5/Factory | Identified exit to Upper Caves 2393 | -5/Factory | Entered Upper Caves 2449 | -5/Upper Caves | Spotted B-75 Beast 2530 | -5/Upper Caves | Core integrity fell below 50% 2535 | -5/Upper Caves | Discovered new exit (range 7) 2542 | -5/Upper Caves | Entered another Upper Caves area 2549 | -5/Upper Caves | Spotted B-75 Beast 2563 | -5/Upper Caves | Lost 7 parts (1p2n1u3w) 2578 | -5/Upper Caves | Learned 4 Factory zone layouts 2662 | -5/Upper Caves | Learned location of 2 exits from Factory 2715 | -5/Upper Caves | Discovered new exit (range 12) 2723 | -5/Upper Caves | Entered Zhirov 2723 | -5/Zhirov | Discovered new exit (range 3) 2729 | -5/Zhirov | Met Zhirov 2736 | -5/Zhirov | Learned location of Quarantine (-3) 2736 | -5/Zhirov | Learned location of Testing (-2) 2736 | -5/Zhirov | Learned location of Command (-1) 2742 | -5/Zhirov | Zhirov requested help retrieving the SGEMP Prototype 2773 | -5/Zhirov | Entered Proximity Caves 2784 | -4/Proximity Caves | Spotted B-86 Titan 2795 | -4/Proximity Caves | Learned Research emergency access door positions 2822 | -4/Proximity Caves | Discovered exit to Factory (range 15) 2832 | -4/Proximity Caves | Entered Factory 2833 | -4/Factory | Identified exit to Upper Caves 2915 | -4/Factory | Entered Upper Caves 2939 | -4/Upper Caves | Spotted B-86 Titan 3029 | -4/Upper Caves | Learned Research garrison access intel 3029 | -4/Upper Caves | Learned Research terminal intel 3029 | -4/Upper Caves | Learned Armory stockpile data 3047 | -4/Upper Caves | Discovered new exit (range 14) 3052 | -4/Upper Caves | Entered another Upper Caves area 3093 | -4/Upper Caves | Learned location of 1 exit from Research 3258 | -4/Upper Caves | Discovered new exit (range 9) 3281 | -4/Upper Caves | Entered Warlord 3389 | -4/Warlord | Attacked by Warlord forces 3456 | -4/Warlord | Core integrity fell below 50% 3465 | -4/Warlord | Lost 4 parts (1p2n1u) 3519 | -4/Warlord | Self-destructed Last Messages --------------- 03507_ PY-S1U(g) destroyed. 03508_ Acquired 57 Protomatter. 03508_ Flamer destroyed. 03509_ Slammed into 91-ALE(g). 03511_ Slammed into 96-G45(M). 03511_ HV Slug penetrates Wall. 03511_ HV Slug penetrates 6I-OXN(g). 03511_ Machine disabled. 03511_ Critical hit (Burn: +37). 03512_ Imp. Deuterium Engine destroyed. 03512_ Slammed into X4-M2B(g). 03513_ Arm. Treads destroyed. 03513_ Penetrated by HV Slug. 03513_ HV Slug penetrates O3-CD3(g). 03513_ O3-CD3(g) suffers critical hit (Destroy). 03513_ O3-CD3(g) destroyed. 03513_ Battle Cannon destroyed. 03514_ Released control of DJ-BNQ(M). 03514_ Took control of F2-E2U(M). 03518_ Imp. Component Analysis Suite destroyed. Map ----- +----------------------------------------------------+ | | | | | | | | | | | | | | | | | | | | | | | | | | | | | ?????????????????????????????????????????????????? | | ?????????????????????????????????????????????????? | | ??????????????????????????####???????????????????? | | ??????????????????????????#%"#???????????????????? | | ??????????????????????????#!X#???????????????????? | | ????????????????????#######% #???????????????????? | | ????????????????????# g%%+%"#???????????????????? | | ??????????######+#### MMg####???????????????????? | | ????????? M g!#???????????##########?? | | ????????? g #???????????""""""""""?? | | ??????????#### #??????????"" """""""? | | ?????????????# ##M########?#?"""X ""# | | ?????????????# """ + #?#""" ""# | | ?????????????# """ # x p #?# " ""# | | ?????????????# """ #[**Y #?? ] ""# | | ?????????????# """ #!m[ #???"""] ""# | | ?????????????# """ # !mmp * #???"""] "# | | ?????????????# c #???"""]] # | | ?????????????# # #???"""""" # | | ?????????????######### # #????######### # | | ?????????????????????# #######+################//# | | ???????????????#######+####### # | | ???????????????# # | | ???????????????# """" # % # | | ???????????????# """"""^ # ##X############## | | ???????????????# " "" " # ####????????????? | | ???????????????# ^ + #??????????###### | | ???????????????# # #??????????# &# | | ???????????????####+#####+#### #########??# &# | | ??????????????????# #??## ### # #??# # | | ??????????????????# #??# # !! #??# # | | ??????????????????# #??# # [ ! #####+### | | ????????????####### #??# """"" # [[ / #?? | | ???????????##"!!!## #??# """"" # ##### #?? | | ???????????#" # #### """"" # #???# ### | | ???????????#"X + ###+####???# | +----------------------------------------------------+ Best States ------------- Heat Dissipation 60 Energy Generation 31 Energy Capacity 240 Matter Stores 130 Matter Capacity 150 Sight Range 16 Terrain Scan Range 16 Terrain Scan Density 10 Resistance: EX 25 Resistance: EM 90 Evasion (%) 63 Launcher Accuracy 40 Target Analysis 6 Core Analysis 8 Armor Integrity Analysis 40 Recoil Reduction 2 Particle Charging 15 Salvage Targeting 1 Offensive Hacking 70 Defensive Hacking 70 Item Schematics ----------------- Combat Drone Bay | -6/Data Miner | Free Lgt. Regenerative Plating | -6/Data Miner | Free Exp. Cesium-ion Thruster | -6/Data Miner | Free Prc. Energy Filter | -6/Data Miner | Free Kinetic Spear | -6/Data Miner | Free Myomer Leg | -6/Data Miner | Free Lrn. Terrain Scanner | -6/Data Miner | Free Hvy. Gauss Cannon | -6/Data Miner | Free Dispersion Rifle | -6/Data Miner | Free Imp. Plasma Cutter | -6/Data Miner | Free Adv. Force Field | -6/Data Miner | Free Lgt. Particle Reactor | -6/Data Miner | Free Assault Drone Bay | -5/Zhirov | Free Exp. Heat Sink | -5/Zhirov | Free Exp. Optical Array | -5/Zhirov | Free Imp. Arc Thrower | -5/Zhirov | Free Robot Schematics ------------------ M-22 Extractor | -6/Data Miner | Free G-50 Soldier | -6/Data Miner | Free Y-64 Sentinel | -6/Data Miner | Free X-67 Chaingunner | -6/Data Miner | Free O-32 Director | -6/Data Miner | Free Fabricated ------------ Nothing Alien Tech Used ----------------- None Achievements -------------- None Challenges ------------ None Polymind | -11 -10 -10 -10 -9 -8 -7 -7 -6 -6 -6 -6 -5 -5 -5 -5 -5 -4 -4 -4 -4 -4 ---------- Run | Scr Mat Min Exi Min Mat Fac DSF Fac Low Low Dat Pro Fac Upp Upp Zhi Pro Fac Upp Upp War Robots Controlled 11 | . 1 . 2 . . . . 1 . . . . 1 1 1 . . . 1 . 3 Combat Hostiles 7 | . . . . . . . . 1 . . . . 1 1 1 . . . 1 . 2 Allies 2 | . . . 2 . . . . . . . . . . . . . . . . . . Classes Controlled 5 | . 1 . 1 . . . . 1 . . . . . 1 . . . . . . 1 Average Host Suspicion 48 | . 11 6 . 79 83 2 99 54 48 44 . . 70 61 93 . . 74 77 1 12 Unsuspicious Activity 843 | . 27 50 20 . . . . 7 180 . . . . . . . . . . 280 279 Returns to Shadow . | . . . . . . . . . . . . . . . . . . . . . . Fuzzy Dispatches . | . . . . . . . . . . . . . . . . . . . . . . Protomatter Created 309 | . . . . 27 82 . 23 . 22 30 . . . . . . . . . . 125 Used 326 | . 5 . 42 . . . . 14 . . . . 14 53 14 . . . 14 . 170 Decayed . | . . . . . . . . . . . . . . . . . . . . . . Highest Spend 97 | . 5 . 33 . . . . 14 . . . . 14 53 14 . . . 14 . 97 Top 5 Hosts by Kills: EX-DEC (-10/Exiles: 20) Game ------ Seed MeleeScatterMantle Manual? 0 Play Time 00:49:42 Cumulative 221.8 hours Start 2022.12.25 @ 14:18:51 End 2022.12.26 @ 15:32:39 Sessions 3 Manual Loads 0 Difficulty Rogue Special Mode Winter2022/Polymind Game No. 220 Rogue 207 Adventurer 1 Explorer 12 Win Type - Total 13 Types 11/1/0/1/0/0/0/0/0 Lore% 71 Gallery% 76 Achievement% 65 Wizard Run 0 Options --------- ASCII 1 Keyboard 1 Movement Numpad Keybinds 1 Fullscreen 1 Font 18/X11 Map View 76x50 Tactical HUD 1 Map Filters NONE Filters NONE Steam 1 RUN: c72890ce-5387-4da9-8429-a26d030f989f